fUSD/lending_fUSD_20240607
["ID","MTS","AMOUNT","RATE_DAILY","PERIOD"]
[328752126,1717765855332,-782.6,0.00029995,4]
[328752127,1717765855342,-782.6,0.00029995,4]
[328752128,1717765855353,-1779.73,0.00029995,4]
[328752129,1717765855363,-1779.73,0.00029995,4]
[328752130,1717765855373,-1779.73,0.00029995,4]
[328752131,1717765855383,-1779.73,0.00029995,4]
[328752132,1717765855392,-1795.58,0.00029995,4]
[328752133,1717765855403,-1795.58,0.00029995,4]
[328752134,1717765855412,-389.84,0.00029995,4]
[328752135,1717765855423,-1795.58,0.00029995,4]
[328752136,1717765855433,-1795.58,0.00029995,4]
[328752137,1717765855443,-1333.0,0.00029995,4]
[328752138,1717765855453,-500.0,0.00029995,4]
[328752139,1717765855462,-1562.91,0.00029995,4]
[328752140,1717765855472,-500.0,0.00029995,4]
[328752141,1717765855482,-1562.91,0.00029995,4]
[328752142,1717765855492,-1562.91,0.00029995,4]
[328752143,1717765855502,-315.36,0.00029995,4]
[328752144,1717765855512,-1562.91,0.00029995,4]
[328752145,1717765855523,-500.0,0.00029995,4]
[328752146,1717765855532,-500.0,0.00029995,4]
[328752147,1717765855543,-500.0,0.00029995,4]
[328752148,1717765855554,-500.0,0.00029995,4]
[328752149,1717765855714,-660.9,0.00029995,4]
[328752150,1717765855724,-660.9,0.00029995,4]
[328752151,1717765855735,-660.9,0.00029995,4]
[328752152,1717765855745,-660.9,0.00029995,4]
[328752153,1717765855756,-500.0,0.00029995,4]
[328752154,1717765855766,-223.49726315,0.00029996,2]
[328752155,1717765855775,-500.0,0.00029996,4]
[328752156,1717765855785,-1488.04610395,0.00029997,2]
[328752157,1717765855795,-257.81639449,0.00029997,4]
[328752158,1717765855805,-500.0,0.00029997,4]
[328752159,1717765855814,-500.0,0.00029997,4]
[328752160,1717765855825,-500.0,0.00029997,4]
[328752161,1717765855834,-1747.74,0.00029997,4]
[328752162,1717765855844,-844.59,0.00029997,4]
[328752163,1717765855853,-500.0,0.00029997,4]
[328752164,1717765855863,-1013.36,0.00029997,4]
[328752165,1717765855873,-783.93,0.00029997,4]
[328752166,1717765855883,-770.19,0.00029997,4]
[328752167,1717765855893,-1489.28,0.00029997,4]
[328752168,1717765855903,-1173.85,0.00029997,4]
[328752169,1717765855912,-500.0,0.00029997,4]
[328752170,1717765855922,-879.29,0.00029997,4]
[328752171,1717765855931,-3209.29,0.00029997,4]
[328752172,1717765855940,-782.6,0.00029997,4]
[328752173,1717765855951,-1779.73,0.00029997,4]
[328752174,1717765855960,-1454.56,0.00029997,4]
[328752175,1717765855971,-1795.58,0.00029997,4]
[328752176,1717765855981,-1562.91,0.00029997,4]
[328752177,1717765855991,-500.0,0.00029997,4]
[328752178,1717765856000,-660.9,0.00029997,4]
[328752179,1717765856010,-500.0,0.00029997,4]
[328752180,1717765856019,-4453.321063,0.00029997,2]
[328752181,1717765856029,-155.45078624,0.00029998,2]
[328752182,1717765856039,-155.20495122,0.00029998,2]
[328752183,1717765856049,-156.38944078,0.00029998,2]
[328752184,1717765856058,-155.11416515,0.00029998,2]
[328752185,1717765856068,-244.52134445,0.00029998,2]
[328752186,1717765856078,-178.12166288,0.00029998,2]
[328752187,1717765856088,-156.17048262,0.00029998,2]
[328752188,1717765856098,-210.70788545,0.00029998,2]
[328752189,1717765856107,-172.13878346,0.00029998,2]
[328752190,1717765856117,-155.32384727,0.00029998,2]
[328752191,1717765856127,-277.46160255,0.00029998,2]
[328752192,1717765856136,-223.44815964,0.00029998,2]
[328752193,1717765856146,-157.64588694,0.00029998,2]
[328752194,1717765856156,-156.02499834,0.00029998,2]
[328752195,1717765856165,-161.84155113,0.00029998,2]
[328752196,1717765856175,-156.32206566,0.00029998,2]
[328752197,1717765856185,-282.71923847,0.00029998,2]
[328752198,1717765856196,-155.4132688,0.00029998,2]
[328752199,1717765856205,-1204.98199879,0.00029998,2]
[328752200,1717765856215,-264.40314208,0.00029998,2]
[328752201,1717765856225,-243.47027095,0.00029998,2]
[328752202,1717765856235,-203.33023757,0.00029998,2]
[328752203,1717765856244,-277.43323922,0.00029998,2]
[328752204,1717765856254,-155.0,0.00029998,2]
[328752205,1717765856265,-213.86479236,0.00029998,2]
[328752206,1717765856279,-160.21932431,0.00029998,2]
[328752207,1717765856288,-156.13411533,0.00029998,2]
[328752208,1717765856297,-7924.54038749,0.00029998,2]
[328752209,1717765856309,-1805.41293491,0.00029998,2]
[328752210,1717765856319,-283.10014109,0.00029998,2]
[328752211,1717765856331,-364.11599494,0.00029998,10]
[328752212,1717765856341,-155.0,0.00029998,2]
[328752213,1717765856352,-2004.73823716,0.00029998,2]
[328752214,1717765856362,-155.4850453,0.00029998,2]
[328752215,1717765856372,-305.34937207,0.00029998,2]
[328752216,1717765856382,-155.37503968,0.00029998,2]
[328752217,1717765856391,-208.23552753,0.00029998,2]
[328752218,1717765856400,-156.17016932,0.00029998,2]
[328752219,1717765856409,-217.93160116,0.00029998,2]
[328752220,1717765856419,-202.39598207,0.00029998,2]
[328752221,1717765856429,-189.35448094,0.00029998,2]
[328752222,1717765856438,-1050.47332739,0.00029998,2]
[328752223,1717765856448,-162.17154766,0.00029998,2]
[328752224,1717765856457,-155.32047439,0.00029998,2]
[328752225,1717765856467,-234.31796451,0.00029998,2]
[328752226,1717765856477,-3020.34799069,0.00029998,2]
[328752227,1717765856487,-420.25168286,0.00029998,2]
[328752228,1717765856497,-533.27644779,0.00029998,2]
[328752229,1717765856507,-328.38546986,0.00029998,2]
[328752230,1717765856517,-156.25166117,0.00029998,2]
[328752231,1717765856527,-788.99182976,0.00029998,2]
[328752232,1717765856537,-155.0,0.00029998,2]
[328752233,1717765856546,-243.5800741,0.00029998,2]
[328752234,1717765856556,-200.44231992,0.00029998,2]
[328752235,1717765856565,-224.99281109,0.00029998,2]
[328752236,1717765856574,-155.97951136,0.00029998,2]
[328752237,1717765856584,-156.70126362,0.00029998,2]
[328752238,1717765856593,-1262.91121604,0.00029998,2]
[328752239,1717765856603,-373.17305541,0.00029998,2]
[328752240,1717765856612,-156.57298962,0.00029998,2]
[328752241,1717765856623,-1224.51306947,0.00029998,2]
[328752242,1717765856632,-157.21854112,0.00029998,2]
[328752243,1717765856642,-164.99574182,0.00029998,2]
[328752244,1717765856652,-155.54684316,0.00029998,2]
[328752245,1717765856662,-155.40153651,0.00029998,2]
[328752246,1717765856672,-311.80185535,0.00029998,2]
[328752247,1717765856682,-160.33590679,0.00029998,2]
[328752248,1717765856691,-216.09478455,0.00029998,2]
[328752249,1717765856702,-205.04577327,0.00029998,2]
[328752250,1717765856711,-306.91793765,0.00029998,2]
[328752251,1717765856721,-155.60142893,0.00029998,2]
[328752252,1717765856731,-259.98179822,0.00029998,2]
[328752253,1717765856740,-172.9692686,0.00029998,2]
[328752254,1717765856750,-156.60079863,0.00029998,2]
[328752255,1717765856759,-156.10178131,0.00029998,2]
[328752256,1717765856769,-3117.0213742,0.00029998,2]
[328752257,1717765856778,-170.91947149,0.00029998,2]
[328752258,1717765856788,-193.51796161,0.00029998,2]
[328752259,1717765856797,-283.89868087,0.00029998,2]
[328752260,1717765856807,-430.06927539,0.00029998,2]
[328752261,1717765856817,-155.56721385,0.00029998,2]
[328752262,1717765856826,-795.38552975,0.00029998,2]
[328752263,1717765856836,-312.72493565,0.00029998,2]
[328752264,1717765856845,-311.3400831,0.00029998,2]
[328752265,1717765856855,-155.34432818,0.00029998,2]
[328752266,1717765856865,-1319.63724125,0.00029998,2]
[328752267,1717765856875,-155.54124141,0.00029998,2]
[328752268,1717765856884,-285.32097099,0.00029998,2]
[328752269,1717765856893,-329.95096756,0.00029998,2]
[328752270,1717765856903,-304.43467166,0.00029998,2]
[328752271,1717765856913,-624.84919594,0.00029998,2]
[328752272,1717765856922,-200.93118356,0.00029998,2]
[328752273,1717765856932,-155.7163077,0.00029998,2]
[328752274,1717765856941,-195.02071198,0.00029998,2]
[328752275,1717765856951,-186.8085885,0.00029998,2]
[328752276,1717765856960,-429.6929047,0.00029998,2]
[328752277,1717765856969,-260.5996056,0.00029998,2]
[328752278,1717765856979,-157.23474211,0.00029998,2]
[328752279,1717765856989,-664.4436507,0.00029998,2]
[328752280,1717765856998,-155.86730534,0.00029998,2]
[328752281,1717765857007,-293.78069837,0.00029998,2]
[328752282,1717765857017,-157.44296407,0.00029998,2]
[328752283,1717765857028,-5000.0,0.00029998,2]
[328752284,1717765857037,-158.25592491,0.00029998,2]
[328752285,1717765857046,-494.82242539,0.00029998,2]
[328752286,1717765857056,-1544.97546822,0.00029998,2]
[328752287,1717765857065,-283.66237537,0.00029998,2]
[328752288,1717765857074,-364.12731579,0.00029998,2]
[328752289,1717765857084,-500.0,0.00029998,4]
[328752290,1717765857093,-500.0,0.00029998,4]
[328752291,1717765857102,-500.0,0.00029998,4]
[328752292,1717765857111,-237.54696585,0.00029998,2]
[328752293,1717765857121,-238.85946147,0.00029998,2]
[328752294,1717765857131,-564.74494872,0.00029998,2]
[328752295,1717765857140,-157.43193944,0.00029998,2]
[328752296,1717765857150,-156.17973297,0.00029998,2]
[328752297,1717765857159,-158.96899296,0.00029998,2]
[328752298,1717765857168,-155.87067499,0.00029998,2]
[328752299,1717765857178,-367.98490617,0.00029998,2]
[328752300,1717765857187,-157.0308117,0.00029998,2]
[328752301,1717765857199,-156.33719386,0.00029998,2]
[328752302,1717765857209,-200.29985527,0.00029998,2]
[328752303,1717765857218,-500.0,0.00029998,4]
[328752304,1717765857228,-177.96175375,0.00029998,2]
[328752305,1717765857239,-1747.74,0.00029998,4]
[328752306,1717765857252,-844.59,0.00029998,4]
[328752307,1717765857267,-525.7,0.00029998,4]
[328752308,1717765857284,-525.7,0.00029998,4]
[328752309,1717765857299,-500.0,0.00029998,4]
[328752310,1717765857310,-500.0,0.00029998,4]
[328752311,1717765857323,-1221.95,0.00029998,4]
[328752312,1717765857335,-1221.95,0.00029998,4]
[328752313,1717765857348,-7299.68,0.00029998,4]
[328752314,1717765857365,-7299.68,0.00029998,4]
[328752315,1717765857379,-3404.37,0.00029998,4]
[328752316,1717765857391,-3404.37,0.00029998,4]
[328752317,1717765857405,-500.0,0.00029998,4]
[328752318,1717765857418,-1013.36,0.00029998,4]
[328752319,1717765857431,-500.0,0.00029998,4]
[328752320,1717765857443,-783.93,0.00029998,4]
[328752321,1717765857455,-783.93,0.00029998,4]
[328752322,1717765857481,-770.19,0.00029998,4]
[328752323,1717765857498,-770.19,0.00029998,4]
[328752324,1717765857515,-3314.7,0.00029998,4]
[328752325,1717765857531,-3314.7,0.00029998,4]
[328752326,1717765857543,-1489.28,0.00029998,4]
[328752327,1717765857555,-1489.28,0.00029998,4]
[328752328,1717765857566,-1173.85,0.00029998,4]
[328752329,1717765857578,-1173.85,0.00029998,4]
[328752330,1717765857591,-500.0,0.00029998,4]
[328752331,1717765857605,-879.29,0.00029998,4]
[328752332,1717765857619,-1018.45,0.00029998,4]
[328752333,1717765857632,-879.29,0.00029998,4]
[328752334,1717765857646,-1018.45,0.00029998,4]
[328752335,1717765857661,-151.0,0.00029998,7]
[328752336,1717765857677,-2118.93146272,0.00029998,2]
[328752337,1717765857692,-3209.29,0.00029998,4]
[328752338,1717765857707,-782.6,0.00029998,4]
[328752339,1717765857717,-151.0,0.00029998,7]
[328752340,1717765857729,-1277.62664211,0.00029998,2]
[328752341,1717765857740,-151.0,0.00029998,7]
[328752342,1717765857752,-1779.73,0.00029998,4]
[328752343,1717765857765,-1454.56,0.00029998,4]
[328752344,1717765857779,-1454.56,0.00029998,4]
[328752345,1717765857794,-1795.58,0.00029998,4]
[328752346,1717765857804,-1333.0,0.00029998,4]
[328752347,1717765857816,-1333.0,0.00029998,4]
[328752348,1717765857829,-151.0,0.00029998,7]
[328752349,1717765857843,-1562.91,0.00029998,4]
[328752350,1717765857855,-299.12,0.00029998,4]
[328752351,1717765857867,-7500.0,0.00029998,7]
[328752352,1717765857877,-260.5,0.00029998,2]
[328752353,1717765857887,-660.9,0.00029998,4]
[328752354,1717765857899,-792.01,0.00029998,4]
[328752355,1717765857911,-792.01,0.00029998,4]
[328752356,1717765857923,-7500.0,0.00029998,7]
[328752357,1717765857934,-205.94174335,0.00029998,2]
[328752358,1717765857947,-151.0,0.00029998,7]
[328752359,1717765857959,-500.0,0.00029998,4]
[328752360,1717765857971,-500.0,0.00029998,4]
[328752361,1717765857984,-500.0,0.00029998,4]
[328752362,1717765857996,-500.0,0.00029998,4]
[328752363,1717765858008,-151.0,0.00029998,7]
[328752364,1717765858020,-265.85210799,0.00029998,2]
[328752365,1717765858034,-2021.0,0.00029999,2]
[328752366,1717765858046,-158.28316788,0.00029999,2]
[328752367,1717765858058,-15096.72534852,0.00029999,2]
[328752368,1717765858069,-151.0,0.00029999,7]
[328752369,1717765858081,-286.363145,0.00029999,7]
[328752370,1717765858093,-151.0,0.00029999,7]
[328752371,1717765858104,-218.017166,0.00029999,7]
[328752372,1717765858115,-24631.13,0.00029999,2]
[328752373,1717765858126,-151.0,0.00029999,7]
[328752374,1717765858137,-156.685381,0.00029999,7]
[328752375,1717765858148,-151.0,0.00029999,7]
[328752376,1717765858160,-151.0,0.00029999,7]
[328752377,1717765858171,-151.0,0.00029999,7]
[328752378,1717765858182,-151.0,0.00029999,7]
[328752379,1717765858193,-151.0,0.00029999,7]
[328752380,1717765858205,-151.0,0.00029999,7]
[328752381,1717765858216,-151.0,0.00029999,7]
[328752382,1717765858227,-151.0,0.00029999,7]
[328752383,1717765858239,-151.0,0.00029999,7]
[328752384,1717765858250,-177.437465,0.00029999,7]
[328752385,1717765858261,-151.0,0.00029999,7]
[328752386,1717765858277,-160.945,0.00029999,7]
[328752387,1717765858288,-151.0,0.00029999,7]
[328752388,1717765858299,-500.0,0.00029999,4]
[328752389,1717765858312,-269.95989,0.00029999,7]
[328752390,1717765858324,-500.0,0.00029999,4]
[328752391,1717765858335,-500.0,0.00029999,4]
[328752392,1717765858346,-500.0,0.00029999,4]
[328752393,1717765858359,-438.08,0.00029999,4]
[328752394,1717765858370,-151.0,0.00029999,7]
[328752395,1717765858382,-636.09,0.00029999,4]
[328752396,1717765858393,-269.95989,0.00029999,7]
[328752397,1717765858404,-151.0,0.00029999,7]
[328752398,1717765858416,-151.0,0.00029999,7]
[328752399,1717765858427,-154.946185,0.00029999,7]
[328752400,1717765858438,-500.0,0.00029999,4]
[328752401,1717765858450,-500.0,0.00029999,4]
[328752402,1717765858461,-500.0,0.00029999,4]
[328752403,1717765858472,-500.0,0.00029999,4]
[328752404,1717765858484,-500.0,0.00029999,4]
[328752405,1717765858495,-500.0,0.00029999,4]
[328752406,1717765858507,-500.0,0.00029999,4]
[328752407,1717765858520,-500.0,0.00029999,4]
[328752408,1717765858531,-500.0,0.00029999,4]
[328752409,1717765858541,-500.0,0.00029999,4]
[328752410,1717765858551,-500.0,0.00029999,4]
[328752411,1717765858560,-500.0,0.00029999,4]
[328752412,1717765858569,-500.0,0.00029999,4]
[328752413,1717765858579,-500.0,0.00029999,4]
[328752414,1717765858589,-414.22,0.00029999,4]
[328752415,1717765858598,-500.0,0.00029999,4]
[328752416,1717765858607,-500.0,0.00029999,4]
[328752417,1717765858616,-500.0,0.00029999,4]
[328752418,1717765858626,-346.69,0.00029999,4]
[328752419,1717765858635,-1747.74,0.00029999,4]
[328752420,1717765858645,-1747.74,0.00029999,4]
[328752421,1717765858654,-1747.74,0.00029999,4]
[328752422,1717765858664,-1747.74,0.00029999,4]
[328752423,1717765858673,-1747.74,0.00029999,4]
[328752424,1717765858683,-1747.74,0.00029999,4]
[328752425,1717765858692,-1747.74,0.00029999,4]
[328752426,1717765858703,-1747.74,0.00029999,4]
[328752427,1717765858712,-1747.74,0.00029999,4]
[328752428,1717765858722,-1747.85071094,0.00029999,4]
[328752429,1717765858731,-151.0,0.00029999,7]
[328752430,1717765858740,-844.59,0.00029999,4]
[328752431,1717765858749,-844.59,0.00029999,4]
[328752432,1717765858759,-844.59,0.00029999,4]
[328752433,1717765858769,-844.59,0.00029999,4]
[328752434,1717765858779,-844.59,0.00029999,4]
[328752435,1717765858789,-352.78359892,0.00029999,4]
[328752436,1717765858884,-251.0,0.00028608,8]
[328752437,1717765858893,-697.92,0.00029992,4]
[328752438,1717765858902,-697.92,0.00029992,4]
[328752439,1717765858911,-129.185,0.00029994,4]
[328752440,1717765858922,-568.735,0.00029994,4]
[328752441,1717765858931,-214.385,0.00029997,4]
[328752442,1717765858942,-483.535,0.00029997,4]
[328752443,1717765858952,-94.45675918,0.00029998,4]
[328752444,1717765858963,-603.46324082,0.00029998,4]
[328752445,1717765858973,-697.92,0.00029998,4]
[328752446,1717765859240,-491.80640108,0.00029999,4]
[328752447,1717765859251,-844.59,0.00029999,4]
[328752448,1717765859261,-844.59,0.00029999,4]
[328752449,1717765859274,-844.59,0.00029999,4]
[328752450,1717765859284,-844.62697615,0.00029999,4]
[328752451,1717765859293,-165.163239,0.00029999,7]
[328752452,1717765859307,-525.7,0.00029999,4]
[328752453,1717765859316,-187.47589348,0.00029999,4]
[328752454,1717765859328,-338.22410652,0.00029999,4]
[328752455,1717765859338,-525.7,0.00029999,4]
[328752456,1717765859350,-525.7,0.00029999,4]
[328752457,1717765859359,-525.7,0.00029999,4]
[328752458,1717765859369,-525.7,0.00029999,4]
[328752459,1717765859379,-272.686203,0.00029999,7]
[328752460,1717765859388,-525.7,0.00029999,4]
[328752461,1717765859398,-525.7,0.00029999,4]
[328752462,1717765859407,-525.87732706,0.00029999,4]
[328752463,1717765859416,-500.0,0.00029999,4]
[328752464,1717765859426,-500.0,0.00029999,4]
[328752465,1717765859435,-518.19504915,0.00029999,4]
[328752466,1717765859445,-151.0,0.00029999,7]
[328752467,1717765859454,-151.0,0.00029999,7]
[328752468,1717765859463,-1221.95,0.00029999,4]
[328752469,1717765859472,-1221.95,0.00029999,4]
[328752470,1717765859482,-1221.95,0.00029999,4]
[328752471,1717765859492,-151.0,0.00029999,7]
[328752472,1717765859501,-1221.95,0.00029999,4]
[328752473,1717765859510,-1221.95,0.00029999,4]
[328752474,1717765859520,-1221.95,0.00029999,4]
[328752475,1717765859530,-1221.95,0.00029999,4]
[328752476,1717765859540,-1221.95,0.00029999,4]
[328752477,1717765859550,-1221.98984971,0.00029999,4]
[328752478,1717765859561,-7299.68,0.00029999,4]
[328752479,1717765859571,-7299.68,0.00029999,4]
[328752480,1717765859581,-2320.76770473,0.00029999,4]
[328752481,1717765859594,-4978.91229527,0.00029999,4]
[328752482,1717765859603,-1891.25313166,0.00029999,4]
[328752483,1717765859623,-5408.42686834,0.00029999,4]
[328752484,1717765859634,-7299.68,0.00029999,4]
[328752485,1717765859643,-2283.63650598,0.00029999,4]
[328752486,1717765859656,-5016.04349402,0.00029999,4]
[328752487,1717765859666,-7299.68,0.00029999,4]
[328752488,1717765859675,-7299.68,0.00029999,4]
[328752489,1717765859685,-7299.7539834,0.00029999,4]
[328752490,1717765859695,-151.0,0.00029999,7]
[328752491,1717765859706,-3404.37,0.00029999,4]
[328752492,1717765859716,-3404.37,0.00029999,4]
[328752493,1717765859725,-3404.37,0.00029999,4]
[328752494,1717765859735,-3404.37,0.00029999,4]
[328752495,1717765859745,-3404.37,0.00029999,4]
[328752496,1717765859754,-3404.37,0.00029999,4]
[328752497,1717765859765,-3404.37,0.00029999,4]
[328752498,1717765859774,-3404.37,0.00029999,4]
[328752499,1717765859784,-3404.52501547,0.00029999,4]
[328752500,1717765859794,-387.87738,0.00029999,7]
[328752501,1717765859803,-1013.36,0.00029999,4]
[328752502,1717765859813,-1013.36,0.00029999,4]
[328752503,1717765859822,-500.0,0.00029999,4]
[328752504,1717765859831,-1013.36,0.00029999,4]
[328752505,1717765859841,-500.0,0.00029999,4]
[328752506,1717765859850,-1013.36,0.00029999,4]
[328752507,1717765859860,-500.0,0.00029999,4]
[328752508,1717765859870,-1013.36,0.00029999,4]
[328752509,1717765859879,-1013.36,0.00029999,4]
[328752510,1717765859888,-500.0,0.00029999,4]
[328752511,1717765859898,-230.780038,0.00029999,7]
[328752512,1717765859908,-1013.36,0.00029999,4]
[328752513,1717765859917,-783.93,0.00029999,4]
[328752514,1717765859926,-439.22448623,0.00029999,4]
[328752515,1717765859936,-783.93,0.00029999,4]
[328752516,1717765859945,-1013.36,0.00029999,4]
[328752517,1717765859956,-783.93,0.00029999,4]
[328752518,1717765859965,-1013.36,0.00029999,4]
[328752519,1717765859974,-783.93,0.00029999,4]
[328752520,1717765859983,-1013.50957769,0.00029999,4]
[328752521,1717765859993,-783.93,0.00029999,4]
[328752522,1717765860002,-783.93,0.00029999,4]
[328752523,1717765860012,-783.93,0.00029999,4]
[328752524,1717765860022,-387.87738,0.00029999,7]
[328752525,1717765860032,-784.14303987,0.00029999,4]
[328752526,1717765860043,-151.0,0.00029999,7]
[328752527,1717765860053,-770.19,0.00029999,4]
[328752528,1717765860063,-770.19,0.00029999,4]
[328752529,1717765860074,-770.19,0.00029999,4]
[328752530,1717765860084,-770.19,0.00029999,4]
[328752531,1717765860094,-770.19,0.00029999,4]
[328752532,1717765860104,-770.19,0.00029999,4]
[328752533,1717765860114,-770.19,0.00029999,4]
[328752534,1717765860123,-770.33228941,0.00029999,4]
[328752535,1717765860133,-3314.7,0.00029999,4]
[328752536,1717765860144,-3314.7,0.00029999,4]
[328752537,1717765860154,-3314.7,0.00029999,4]
[328752538,1717765860163,-3314.7,0.00029999,4]
[328752539,1717765860175,-3314.7,0.00029999,4]
[328752540,1717765860184,-3314.7,0.00029999,4]
[328752541,1717765860193,-3314.7,0.00029999,4]
[328752542,1717765860204,-3314.7,0.00029999,4]
[328752543,1717765860213,-3314.91214134,0.00029999,4]
[328752544,1717765860223,-1489.28,0.00029999,4]
[328752545,1717765860232,-1489.28,0.00029999,4]
[328752546,1717765860241,-1489.28,0.00029999,4]
[328752547,1717765860250,-1489.28,0.00029999,4]
[328752548,1717765860260,-1489.28,0.00029999,4]
[328752549,1717765860271,-1489.28,0.00029999,4]
[328752550,1717765860283,-1489.28,0.00029999,4]
[328752551,1717765860293,-1489.49733734,0.00029999,4]
[328752552,1717765860303,-1173.85,0.00029999,4]
[328752553,1717765860315,-1173.85,0.00029999,4]
[328752554,1717765860324,-1173.85,0.00029999,4]
[328752555,1717765860335,-1173.85,0.00029999,4]
[328752556,1717765860345,-1173.85,0.00029999,4]
[328752557,1717765860356,-500.0,0.00029999,4]
[328752558,1717765860366,-1173.85,0.00029999,4]
[328752559,1717765860377,-500.0,0.00029999,4]
[328752560,1717765860388,-1173.85,0.00029999,4]
[328752561,1717765860398,-500.0,0.00029999,4]
[328752562,1717765860409,-1173.95367962,0.00029999,4]
[328752563,1717765860419,-388.49585678,0.00029999,4]
[328752564,1717765860429,-879.29,0.00029999,4]
[328752565,1717765860439,-1018.45,0.00029999,4]
[328752566,1717765860451,-879.29,0.00029999,4]
[328752567,1717765860461,-1018.45,0.00029999,4]
[328752568,1717765860470,-879.29,0.00029999,4]
[328752569,1717765860480,-1018.45,0.00029999,4]
[328752570,1717765860490,-879.29,0.00029999,4]
[328752571,1717765860500,-1018.45,0.00029999,4]
[328752572,1717765860510,-879.29,0.00029999,4]
[328752573,1717765860519,-1018.45,0.00029999,4]
[328752574,1717765860528,-879.29,0.00029999,4]
[328752575,1717765860538,-1018.45,0.00029999,4]
[328752576,1717765860547,-879.29,0.00029999,4]
[328752577,1717765860557,-1018.45,0.00029999,4]
[328752578,1717765860567,-879.47626345,0.00029999,4]
[328752579,1717765860576,-1018.45,0.00029999,4]
[328752580,1717765860585,-1018.55172584,0.00029999,4]
[328752581,1717765860595,-3209.29,0.00029999,4]
[328752582,1717765860605,-3209.29,0.00029999,4]
[328752583,1717765860614,-3209.29,0.00029999,4]
[328752584,1717765860624,-3209.29,0.00029999,4]
[328752585,1717765860633,-3209.29,0.00029999,4]
[328752586,1717765860644,-3209.29,0.00029999,4]
[328752587,1717765860654,-3209.29,0.00029999,4]
[328752588,1717765860663,-3209.29,0.00029999,4]
[328752589,1717765860673,-782.6,0.00029999,4]
[328752590,1717765860683,-782.6,0.00029999,4]
[328752591,1717765860694,-3209.29,0.00029999,4]
[328752592,1717765860707,-782.6,0.00029999,4]
[328752593,1717765860717,-3209.36974854,0.00029999,4]
[328752594,1717765860726,-782.6,0.00029999,4]
[328752595,1717765860737,-782.6,0.00029999,4]
[328752596,1717765860746,-782.6,0.00029999,4]
[328752597,1717765860755,-782.6,0.00029999,4]
[328752598,1717765860765,-782.6,0.00029999,4]
[328752599,1717765860775,-782.6,0.00029999,4]
[328752600,1717765860784,-782.78009427,0.00029999,4]
[328752601,1717765860794,-159.307457,0.00029999,7]
[328752602,1717765860803,-1779.73,0.00029999,4]
[328752603,1717765860813,-1779.73,0.00029999,4]
[328752604,1717765860822,-1779.73,0.00029999,4]
[328752605,1717765860832,-1779.73,0.00029999,4]
[328752606,1717765860841,-1779.73,0.00029999,4]
[328752607,1717765860850,-1779.73,0.00029999,4]
[328752608,1717765860859,-1779.73,0.00029999,4]
[328752609,1717765860869,-1779.73,0.00029999,4]
[328752610,1717765860878,-1779.73,0.00029999,4]
[328752611,1717765860888,-1779.8861162,0.00029999,4]
[328752612,1717765860897,-1454.56,0.00029999,4]
[328752613,1717765860907,-1454.56,0.00029999,4]
[328752614,1717765860916,-1264.08255502,0.00029999,4]
[328752615,1717765860930,-190.47744498,0.00029999,4]
[328752616,1717765860940,-816.32255502,0.00029999,4]
[328752617,1717765861654,226.6238354,0.00022499,2]
[328752618,1717765879644,226.6238354,0.00022499,2]
[328752619,1717765899644,226.6238354,0.00022499,2]
[328752620,1717765921647,118.22632966,0.00022499,2]
[328752621,1717765921671,108.39750574,0.00022499,2]
[328752624,1717766030209,50000.0,0.0003,40]
[328752626,1717766828125,-226.6238354,0.000201,2]
[328752627,1717766828147,-157.47,0.00024384,2]
[328752628,1717766828170,-1250.0,0.00025,2]